fUST/lending_fUST_20250106
["ID","MTS","AMOUNT","RATE_DAILY","PERIOD"]
[347768019,1736097044408,-500.0,0.0002284,3]
[347768021,1736097044418,-151.0,0.0002284,7]
[347768023,1736097044428,-1861.0,0.00022841,3]
[347768025,1736097044437,-1861.0,0.00022841,3]
[347768027,1736097044446,-1861.0,0.00022841,3]
[347768029,1736097044455,-1861.0,0.00022841,3]
[347768031,1736097044466,-1861.0,0.00022841,3]
[347768034,1736097044475,-1861.0,0.00022841,3]
[347768036,1736097044485,-1861.0,0.00022841,3]
[347768038,1736097044494,-1861.02288484,0.00022841,3]
[347768040,1736097044504,-500.0,0.00022841,3]
[347768042,1736097044514,-500.0,0.00022841,3]
[347768044,1736097044523,-500.0,0.00022841,3]
[347768046,1736097044532,-500.0,0.00022841,3]
[347768048,1736097044541,-500.0,0.00022841,3]
[347768050,1736097044551,-500.0,0.00022841,3]
[347768052,1736097044560,-500.0,0.00022841,3]
[347768054,1736097044570,-500.0,0.00022841,3]
[347768056,1736097044579,-626.57064047,0.00022841,3]
[347768058,1736097044588,-109929.38043831,0.00022842,5]
[347768232,1736097046286,-277.02698521,0.00020954,6]
[347768234,1736097046297,-500.0,0.00021059,3]
[347768236,1736097046307,-615.31913201,0.00021073,2]
[347768238,1736097046316,-184853.54566346,0.00022842,5]
[347768240,1736097046326,-180586.69,0.00022842,5]
[347768242,1736097046336,-151.0,0.00022842,7]
[347768244,1736097046345,-151.0,0.00022842,7]
[347768246,1736097046355,-151.0,0.00022842,7]
[347768248,1736097046365,-151.0,0.00022842,7]
[347768250,1736097046376,-151.0,0.00022842,7]
[347768253,1736097046386,-151.0,0.00022842,7]
[347768254,1736097046395,-151.0,0.00022842,7]
[347768256,1736097046405,-233.847376,0.00022842,7]
[347768258,1736097046414,-151.0,0.00022842,7]
[347768260,1736097046424,-151.0,0.00022842,7]
[347768262,1736097046433,-160.219361,0.00022842,7]
[347768264,1736097046443,-151.0,0.00022842,7]
[347768266,1736097046452,-151.0,0.00022842,7]
[347768268,1736097046461,-151.0,0.00022842,7]
[347768270,1736097046470,-151.0,0.00022842,7]
[347768272,1736097046479,-151.0,0.00022842,7]
[347768274,1736097046488,-151.0,0.00022842,7]
[347768276,1736097046498,-151.0,0.00022842,7]
[347768278,1736097046507,-192.725872,0.00022842,7]
[347768280,1736097046516,-151.0,0.00022842,7]
[347768282,1736097046526,-151.0,0.00022842,7]
[347768284,1736097046535,-151.0,0.00022842,7]
[347768286,1736097046544,-151.0,0.00022842,7]
[347768288,1736097046555,-151.0,0.00022842,7]
[347768290,1736097046564,-151.0,0.00022842,7]
[347768292,1736097046573,-151.0,0.00022842,7]
[347768293,1736097046582,-151.0,0.00022842,7]
[347768295,1736097046591,-151.0,0.00022842,7]
[347768297,1736097046600,-151.0,0.00022842,7]
[347768299,1736097046609,-151.0,0.00022842,7]
[347768301,1736097046620,-151.0,0.00022842,7]
[347768303,1736097046629,-433.2705,0.00022842,7]
[347768305,1736097046639,-433.2705,0.00022842,7]
[347768307,1736097046648,-433.2705,0.00022842,7]
[347768309,1736097046658,-433.2705,0.00022842,7]
[347768311,1736097046667,-151.0,0.00022842,7]
[347768313,1736097046676,-151.0,0.00022842,7]
[347768315,1736097046686,-151.0,0.00022842,7]
[347768326,1736097046778,-259.5104,0.00022842,7]
[347768328,1736097046788,-151.0,0.00022842,7]
[347768330,1736097046799,-151.0,0.00022842,7]
[347768332,1736097046808,-151.0,0.00022842,7]
[347768334,1736097046817,-242.858059,0.00022842,7]
[347768335,1736097046826,-151.0,0.00022842,2]
[347768337,1736097046836,-151.0,0.00022842,2]
[347768339,1736097046846,-328.767348,0.00022842,7]
[347768342,1736097046856,-328.767348,0.00022842,7]
[347768344,1736097046865,-328.767348,0.00022842,7]
[347768346,1736097046875,-328.767348,0.00022842,7]
[347768348,1736097046884,-151.0,0.00022842,7]
[347768350,1736097046894,-151.0,0.00022842,7]
[347768351,1736097046903,-607.89853837,0.00022844,3]
[347768353,1736097046912,-151.0,0.00022873,2]
[347768355,1736097046922,-500.0,0.00022873,2]
[347768357,1736097046931,-166.25441095,0.00022873,2]
[347768359,1736097046941,-500.0,0.00022873,2]
[347768361,1736097046951,-500.0,0.00022873,2]
[347768363,1736097046960,-500.0,0.00022873,2]
[347768365,1736097046969,-515.69003883,0.00022873,2]
[347768367,1736097046979,-500.0,0.00022873,2]
[347768369,1736097046988,-500.0,0.00022873,2]
[347768371,1736097046997,-563.54929524,0.00022873,2]
[347768373,1736097047007,-161.17006677,0.00022873,2]
[347768375,1736097047016,-567.12628017,0.00022873,2]
[347768377,1736097047025,-151.0,0.00022878,7]
[347768379,1736097047035,-151.233664,0.00022878,7]
[347768381,1736097047044,-1049.41,0.00022883,3]
[347768383,1736097047054,-500.0,0.00022883,3]
[347768385,1736097047063,-420.0,0.00022884,2]
[347768387,1736097047073,-151.598266,0.0002289,7]
[347768389,1736097047082,-151.0,0.0002289,7]
[347768391,1736097047091,-151.0,0.00022896,7]
[347768393,1736097047101,-151.0,0.00022896,7]
[347768395,1736097047110,-151.0,0.00022896,7]
[347768397,1736097047119,-151.0,0.00022896,7]
[347768399,1736097047128,-151.0,0.00022896,7]
[347768401,1736097047138,-151.0,0.00022896,7]
[347768403,1736097047147,-151.0,0.00022896,7]
[347768405,1736097047156,-151.0,0.00022896,7]
[347768407,1736097047166,-151.0,0.00022896,7]
[347768409,1736097047176,-151.0,0.00022896,7]
[347768411,1736097047186,-151.0,0.00022896,7]
[347768413,1736097047195,-151.0,0.00022896,7]
[347768414,1736097047204,-220.33529,0.00022896,7]
[347768416,1736097047213,-151.0,0.00022896,7]
[347768418,1736097047223,-293.458003,0.00022896,7]
[347768420,1736097047232,-151.0,0.00022896,7]
[347768422,1736097047242,-151.537802,0.00022896,7]
[347768424,1736097047251,-433.2705,0.00022896,7]
[347768426,1736097047262,-433.2705,0.00022896,7]
[347768428,1736097047271,-433.2705,0.00022896,7]
[347768430,1736097047281,-433.2705,0.00022896,7]
[347768432,1736097047290,-433.2705,0.00022896,7]
[347768434,1736097047301,-433.2705,0.00022896,7]
[347768437,1736097047312,-433.2705,0.00022896,7]
[347768439,1736097047321,-433.2705,0.00022896,7]
[347768440,1736097047331,-433.2705,0.00022896,7]
[347768443,1736097047341,-433.2705,0.00022896,7]
[347768445,1736097047351,-433.2705,0.00022896,7]
[347768447,1736097047363,-433.2705,0.00022896,7]
[347768449,1736097047377,-433.2705,0.00022896,7]
[347768451,1736097047386,-433.2705,0.00022896,7]
[347768453,1736097047395,-433.2705,0.00022896,7]
[347768455,1736097047406,-433.270492,0.00022896,7]
[347768457,1736097047418,-151.0,0.00022896,7]
[347768458,1736097047427,-151.0,0.00022896,7]
[347768459,1736097047437,-151.0,0.00022896,7]
[347768460,1736097047447,-151.0,0.00022896,7]
[347768461,1736097047457,-151.0,0.00022896,7]
[347768462,1736097047466,-151.0,0.00022896,7]
[347768463,1736097047476,-151.0,0.00022896,7]
[347768464,1736097047485,-151.0,0.00022896,7]
[347768465,1736097047495,-151.0,0.00022896,2]
[347768466,1736097047504,-151.0,0.00022896,2]
[347768467,1736097047515,-151.0,0.00022896,2]
[347768468,1736097047524,-151.0,0.00022896,2]
[347768469,1736097047534,-151.0,0.00022896,2]
[347768470,1736097047544,-165.141316,0.00022896,2]
[347768471,1736097047555,-328.767348,0.00022896,7]
[347768472,1736097047566,-328.767348,0.00022896,7]
[347768473,1736097047576,-328.767348,0.00022896,7]
[347768474,1736097047585,-328.767348,0.00022896,7]
[347768475,1736097047595,-328.767348,0.00022896,7]
[347768476,1736097047604,-328.767348,0.00022896,7]
[347768477,1736097047614,-328.767348,0.00022896,7]
[347768478,1736097047623,-328.767348,0.00022896,7]
[347768479,1736097047633,-328.767348,0.00022896,7]
[347768480,1736097047643,-328.767348,0.00022896,7]
[347768481,1736097047653,-328.767348,0.00022896,7]
[347768483,1736097047664,-328.767348,0.00022896,7]
[347768484,1736097047673,-328.767348,0.00022896,7]
[347768486,1736097047683,-328.767338,0.00022896,7]
[347768488,1736097047692,-4887.32,0.000229,14]
[347768490,1736097047701,-11196.98,0.000229,14]
[347768492,1736097047711,-8073.23,0.000229,2]
[347768494,1736097047720,-154.054485,0.00022913,7]
[347768496,1736097047730,-151.0,0.00022913,7]
[347768498,1736097047740,-151.0,0.00022913,7]
[347768500,1736097047749,-151.0,0.00022913,7]
[347768502,1736097047759,-151.0,0.00022913,7]
[347768504,1736097047768,-176.163688,0.00022913,7]
[347768506,1736097047778,-230.533916,0.00022913,7]
[347768508,1736097047787,-151.0,0.00022913,7]
[347768510,1736097047798,-151.0,0.00022913,7]
[347768512,1736097047808,-151.0,0.00022913,7]
[347768514,1736097047818,-151.0,0.00022913,7]
[347768516,1736097047827,-151.0,0.00022913,7]
[347768518,1736097047836,-151.0,0.00022913,7]
[347768520,1736097047846,-151.0,0.00022913,7]
[347768522,1736097047855,-151.0,0.00022913,7]
[347768524,1736097047865,-151.0,0.00022913,7]
[347768526,1736097047875,-151.0,0.00022913,7]
[347768528,1736097047884,-151.0,0.00022913,7]
[347768530,1736097047893,-151.0,0.00022913,7]
[347768532,1736097047903,-151.0,0.00022913,7]
[347768534,1736097047913,-151.0,0.00022913,7]
[347768536,1736097047922,-151.0,0.00022913,7]
[347768538,1736097047932,-151.0,0.00022913,7]
[347768540,1736097047941,-151.0,0.00022913,7]
[347768542,1736097047951,-151.0,0.00022913,7]
[347768544,1736097047961,-167.932842,0.00022913,7]
[347768546,1736097047970,-150.09,0.0002292,10]
[347768548,1736097047980,-150.09,0.0002292,2]
[347768550,1736097047990,-500.0,0.0002292,10]
[347768552,1736097047999,-150.09,0.0002292,10]
[347768554,1736097048008,-150.09,0.0002292,2]
[347768556,1736097048018,-1772.60145967,0.00022928,2]
[347768558,1736097048028,-151.0,0.00022928,7]
[347768560,1736097048037,-151.0,0.00022928,7]
[347768562,1736097048048,-151.0,0.00022928,7]
[347768564,1736097048058,-151.0,0.00022928,7]
[347768566,1736097048067,-151.0,0.00022928,7]
[347768568,1736097048077,-285.972984,0.00022928,7]
[347768570,1736097048087,-585600.67577778,0.00022928,10]
[347768575,1736097048127,-7236.20797811,0.00022928,10]
[347768577,1736097048138,-2575.34233914,0.00022928,10]
[347768579,1736097048149,-535.84346821,0.00022928,10]
[347771812,1736097618713,160.581905,0.00013973,2]
[347771830,1736098046135,-3891.2395276,0.00017888,2]
[347771831,1736098046159,-1000.0,0.00018069,2]
[347771832,1736098046193,-396.313176,0.00018706,2]
[347771833,1736098046224,-353.756914,0.000188,2]
[347771834,1736098046252,-1419.556782,0.00018986,2]
[347771835,1736098046277,-154.92253873,0.00019,2]
[347771836,1736098046301,-302.84859387,0.00019,2]
[347771837,1736098046325,-1338.80026585,0.00019092,2]
[347771838,1736098046348,-302.66719923,0.0001919,2]
[347771839,1736098046371,-196.39252214,0.00019286,2]
[347771840,1736098046394,-300.0,0.00019705,2]
[347771841,1736098046417,-924.350413,0.00019708,2]
[347771842,1736098046440,-165.68034,0.0001978,2]
[347771843,1736098046464,-152.10020142,0.000199,2]
[347771844,1736098046485,-182.95911105,0.0001995,2]
[347771845,1736098046510,-152.10020142,0.00020007,2]
[347771846,1736098046535,-152.10020142,0.00020114,2]
[347771847,1736098046559,-152.10020142,0.00020221,2]
[347771848,1736098046581,-292.77877431,0.00020222,2]
[347771849,1736098046605,-500.0,0.00020321,3]
[347771850,1736098046628,-500.0,0.00020321,3]
[347771851,1736098046651,-500.0,0.00020321,3]
[347771852,1736098046677,-500.0,0.00020321,3]
[347771853,1736098046700,-500.0,0.00020321,3]
[347771854,1736098046723,-677.07,0.00020321,3]
[347771855,1736098046746,-500.0,0.00020321,3]
[347771856,1736098046770,-692.68,0.00020321,3]
[347771857,1736098046793,-500.0,0.00020321,3]
[347771858,1736098046818,-7893.8381563,0.00020322,2]
[347771859,1736098046839,-5000.0,0.00020322,2]
[347771860,1736098046861,-5000.0,0.00020322,2]
[347771861,1736098046882,-5000.0,0.00020322,2]
[347771862,1736098046904,-5000.0,0.00020322,2]
[347771863,1736098046929,-152.10020142,0.00020329,2]
[347771864,1736098046953,-152.10020142,0.00020436,2]
[347771865,1736098046976,-160.581905,0.00020447,2]
[347771866,1736098046999,-187.587171,0.00020521,2]
[347771867,1736098047022,-152.10020142,0.00020543,2]
[347771868,1736098047046,-500.0,0.00020595,3]
[347771869,1736098047068,-292.7787743,0.00020595,2]
[347771870,1736098047092,-677.07,0.00020595,3]
[347771871,1736098047115,-692.68,0.00020595,3]
[347771872,1736098047138,-152.10020142,0.0002065,2]
[347771873,1736098047161,-152.10020142,0.00020757,2]
[347771874,1736098047318,-150.0,0.00020828,2]
[347771875,1736098047342,-152.10020142,0.00020864,2]
[347771876,1736098047366,-500.0,0.00020869,3]
[347771877,1736098047389,-677.07,0.00020869,3]
[347771878,1736098047414,-692.68,0.00020869,3]
[347771879,1736098047436,-292.7787743,0.00020968,2]
[347771880,1736098047460,-152.10020142,0.00020971,2]
[347771881,1736098047483,-189.146,0.00021037,2]
[347771882,1736098047504,-187.76270674,0.00021037,2]
[347771883,1736098047526,-500.0,0.00021037,3]
[347771884,1736098047548,-500.0,0.00021037,3]
[347771885,1736098047571,-500.0,0.00021037,3]
[347771886,1736098047593,-500.0,0.00021037,3]
[347771887,1736098047616,-500.0,0.00021037,3]
[347771888,1736098047639,-500.0,0.00021037,3]
[347771889,1736098047661,-500.0,0.00021037,3]
[347771890,1736098047684,-500.0,0.00021037,3]
[347771891,1736098047707,-500.0,0.00021037,3]
[347771892,1736098047730,-500.0,0.00021037,2]
[347771893,1736098047753,-283.10808477,0.00021037,2]
[347771894,1736098047777,-630.80077109,0.00021037,2]
[347771895,1736098047804,-500.0,0.00021037,2]
[347771896,1736098047828,-509.9907207,0.00021037,2]
[347771897,1736098047851,-500.78129913,0.00021037,3]
[347771898,1736098047874,-500.0,0.00021037,3]
[347771899,1736098047896,-500.0,0.00021037,3]
[347771900,1736098047926,-500.0,0.00021037,3]
[347771901,1736098047949,-500.0,0.00021037,3]
[347771902,1736098047971,-500.0,0.00021037,3]
[347771903,1736098047993,-500.0,0.00021037,3]
[347771904,1736098048015,-500.0,0.00021037,3]
[347771905,1736098048037,-500.0,0.00021037,3]
[347771906,1736098048061,-500.0,0.00021037,3]
[347771907,1736098048084,-500.0,0.00021037,3]
[347771908,1736098048106,-500.0,0.00021037,3]
[347771909,1736098048128,-500.0,0.00021037,3]
[347771910,1736098048151,-500.0,0.00021037,3]
[347771911,1736098048174,-500.0,0.00021037,3]
[347771912,1736098048196,-500.0,0.00021037,3]
[347771913,1736098048217,-500.0,0.00021037,3]
[347771914,1736098048239,-500.0,0.00021037,3]
[347771915,1736098048260,-500.0,0.00021037,3]
[347771916,1736098048283,-626.4,0.00021037,3]
[347771917,1736098048303,-216.20820546,0.00021037,3]
[347771918,1736098048325,-500.0,0.00021037,3]
[347771919,1736098048348,-500.0,0.00021037,3]
[347771920,1736098048369,-500.0,0.00021037,3]
[347771921,1736098048391,-500.0,0.00021037,3]
[347771922,1736098048414,-500.0,0.00021037,3]
[347771923,1736098048437,-500.0,0.00021037,3]
[347771924,1736098048459,-500.0,0.00021037,3]
[347771925,1736098048479,-500.0,0.00021037,3]
[347771926,1736098048502,-500.0,0.00021037,3]
[347771927,1736098048524,-500.0,0.00021037,3]
[347771928,1736098048547,-500.0,0.00021037,3]
[347771929,1736098048571,-500.0,0.00021037,3]
[347771930,1736098048595,-500.0,0.00021037,3]
[347771931,1736098048618,-500.0,0.00021037,3]
[347771932,1736098048642,-500.0,0.00021037,3]
[347771933,1736098048666,-500.0,0.00021037,3]
[347771934,1736098048693,-500.0,0.00021037,3]
[347771935,1736098048717,-500.0,0.00021037,3]
[347771936,1736098048740,-500.0,0.00021037,3]
[347771937,1736098048765,-500.0,0.00021037,3]
[347771938,1736098048787,-500.0,0.00021037,3]
[347771939,1736098048813,-500.0,0.00021037,3]
[347771940,1736098048836,-500.0,0.00021037,3]
[347771941,1736098048859,-500.0,0.00021037,3]
[347771942,1736098048882,-500.0,0.00021037,3]
[347771943,1736098048905,-500.0,0.00021037,3]
[347771944,1736098048928,-500.0,0.00021037,3]
[347771945,1736098048949,-501.77347753,0.00021037,3]
[347771946,1736098048972,-500.0,0.00021037,3]
[347771947,1736098048995,-500.0,0.00021037,3]
[347771948,1736098049019,-500.0,0.00021037,3]
[347771949,1736098049041,-500.0,0.00021037,3]
[347771950,1736098049065,-500.0,0.00021037,3]
[347771951,1736098049087,-500.0,0.00021037,3]
[347771952,1736098049108,-500.0,0.00021037,3]
[347771953,1736098049130,-500.0,0.00021037,3]
[347771954,1736098049152,-500.0,0.00021037,3]
[347771955,1736098049175,-500.0,0.00021037,3]
[347771956,1736098049196,-500.0,0.00021037,3]
[347771957,1736098049218,-500.0,0.00021037,3]
[347771958,1736098049239,-502.95428723,0.00021037,3]
[347771959,1736098049261,-500.0,0.00021037,3]
[347771960,1736098049283,-500.0,0.00021037,3]
[347771961,1736098049306,-500.0,0.00021037,3]
[347771962,1736098049329,-500.0,0.00021037,3]
[347771963,1736098049351,-500.0,0.00021037,3]
[347771964,1736098049374,-500.0,0.00021037,3]
[347771965,1736098049395,-500.0,0.00021037,3]
[347771966,1736098049419,-500.0,0.00021037,3]
[347771967,1736098049443,-515.50873281,0.00021037,3]
[347771968,1736098049466,-500.0,0.00021037,3]
[347771969,1736098049488,-503.75222396,0.00021037,3]
[347771970,1736098049511,-500.0,0.00021037,3]
[347771971,1736098049544,-500.0,0.00021038,3]
[347771972,1736098049571,-500.0,0.00021038,3]
[347771973,1736098049594,-500.0,0.00021038,3]
[347771974,1736098049617,-596.71581186,0.00021038,3]
[347771975,1736098049640,-500.0,0.00021038,3]
[347771976,1736098049661,-554.90507457,0.00021038,3]
[347771977,1736098049685,-633.62733997,0.00021038,3]
[347771978,1736098049708,-500.0,0.00021038,3]
[347771979,1736098049731,-453.465491,0.00021038,3]
[347771980,1736098049753,-500.0,0.00021038,3]
[347771981,1736098049776,-500.0,0.00021038,3]
[347771982,1736098049801,-500.0,0.00021038,3]
[347771983,1736098049822,-500.0,0.00021038,3]
[347771984,1736098049845,-490.28169312,0.00021038,3]
[347771985,1736098049867,-500.0,0.00021038,3]
[347771986,1736098049891,-500.0,0.00021038,3]
[347771987,1736098049913,-479.57711209,0.00021038,3]
[347771988,1736098049936,-500.0,0.00021038,3]
[347771989,1736098049958,-500.0,0.00021038,3]
[347771990,1736098049981,-500.0,0.00021038,3]
[347771991,1736098050003,-500.0,0.00021038,3]
[347771992,1736098050027,-500.0,0.00021038,3]
[347771993,1736098050049,-500.0,0.00021038,3]
[347771994,1736098050194,-500.0,0.00021038,3]
[347771995,1736098050217,-500.0,0.00021038,3]
[347771996,1736098050238,-500.0,0.00021038,3]
[347771998,1736098050260,-500.0,0.00021038,3]
[347771999,1736098050283,-500.0,0.00021038,3]
[347772001,1736098050304,-500.0,0.00021038,3]
[347772002,1736098050325,-500.29108879,0.00021038,3]
[347772004,1736098050348,-500.0,0.00021038,3]
[347772005,1736098050371,-500.0,0.00021038,3]
[347772006,1736098050393,-500.0,0.00021038,3]
[347772007,1736098050417,-500.0,0.00021038,3]
[347772008,1736098050439,-500.0,0.00021038,3]
[347772009,1736098050461,-500.0,0.00021038,3]
[347772010,1736098050484,-524.62826311,0.00021038,3]
[347772011,1736098050506,-500.92095359,0.00021038,3]
[347772012,1736098050528,-500.0,0.00021038,3]
[347772013,1736098050549,-500.64600776,0.00021038,3]
[347772014,1736098050571,-500.0,0.00021038,3]
[347772015,1736098050593,-500.0,0.00021038,3]
[347772016,1736098050615,-500.0,0.00021038,3]
[347772017,1736098050638,-500.0,0.00021038,3]
[347772018,1736098050661,-223.36689605,0.00021038,3]
[347772019,1736098050685,-500.0,0.00021038,3]
[347772020,1736098050707,-500.0,0.00021038,3]
[347772021,1736098050729,-500.0,0.00021038,3]
[347772022,1736098050751,-500.0,0.00021038,3]
[347772023,1736098050773,-500.0,0.00021038,3]
[347772024,1736098050796,-500.0,0.00021038,3]
[347772025,1736098050819,-202.05619792,0.00021038,3]
[347772026,1736098050841,-500.0,0.00021038,3]
[347772027,1736098050863,-500.0,0.00021038,3]
[347772028,1736098050886,-500.0,0.00021038,3]
[347772029,1736098050907,-500.0,0.00021038,3]
[347772030,1736098050929,-500.0,0.00021038,3]
[347772031,1736098050951,-500.0,0.00021038,3]
[347772032,1736098050973,-500.0,0.00021038,3]
[347772033,1736098050995,-500.0,0.00021038,2]
[347772034,1736098051018,-500.0,0.00021038,3]
[347772035,1736098051039,-500.0,0.00021038,3]
[347772036,1736098051060,-500.0,0.00021038,3]
[347772037,1736098051082,-500.0,0.00021038,3]
[347772038,1736098051104,-500.0,0.00021038,3]
[347772039,1736098051127,-500.0,0.00021038,3]
[347772040,1736098051150,-500.0,0.00021038,3]
[347772041,1736098051172,-500.0,0.00021038,3]
[347772042,1736098051193,-502.02754045,0.00021038,3]
[347772043,1736098051215,-591.10012606,0.00021038,3]
[347772044,1736098051237,-500.0,0.00021038,3]
[347772045,1736098051259,-449.07988749,0.00021038,3]
[347772046,1736098051281,-500.0,0.00021038,3]
[347772047,1736098051302,-500.0,0.00021038,3]
[347772048,1736098051323,-500.0,0.00021038,3]
[347772049,1736098051344,-521.61066393,0.00021038,3]
[347772050,1736098051366,-500.0,0.00021038,3]
[347772051,1736098051388,-500.0,0.00021038,3]
[347772052,1736098051410,-500.0,0.00021038,3]
[347772053,1736098051433,-500.0,0.00021038,3]
[347772054,1736098051456,-500.0,0.00021038,3]
[347772055,1736098051478,-500.0,0.00021038,3]
[347772056,1736098051499,-502.60345852,0.00021038,3]
[347772057,1736098051521,-500.0,0.00021038,3]
[347772058,1736098051543,-504.25709258,0.00021038,3]
[347772059,1736098051565,-500.0,0.00021038,3]
[347772060,1736098051587,-500.0,0.00021038,3]
[347772061,1736098051608,-500.0,0.00021038,3]
[347772062,1736098051630,-500.0,0.00021038,3]
[347772063,1736098051651,-500.0,0.00021038,3]
[347772064,1736098051673,-500.0,0.00021038,3]
[347772065,1736098051695,-502.85293584,0.00021038,3]
[347772066,1736098051717,-500.0,0.00021038,3]
[347772067,1736098051739,-500.0,0.00021038,3]
[347772068,1736098051762,-500.78806821,0.00021038,3]
[347772069,1736098051784,-500.0,0.00021038,3]
[347772070,1736098051808,-500.0,0.00021038,3]
[347772071,1736098051830,-419.44287106,0.00021038,3]
[347772072,1736098051853,-438.54428295,0.00021038,3]
[347772073,1736098051875,-500.0,0.00021038,3]
[347772074,1736098051896,-500.0,0.00021038,3]
[347772075,1736098051918,-500.0,0.00021038,3]
[347772076,1736098051938,-500.0,0.00021038,3]
[347772077,1736098051959,-500.0,0.00021038,3]
[347772078,1736098051981,-500.0,0.00021038,3]
[347772079,1736098052001,-500.0,0.00021038,3]
[347772080,1736098052023,-500.0,0.00021038,3]
[347772081,1736098052045,-500.0,0.00021038,3]
[347772082,1736098052067,-500.0,0.00021038,3]
[347772083,1736098052089,-500.0,0.00021038,3]
[347772084,1736098052110,-500.0,0.00021038,3]
[347772085,1736098052132,-500.0,0.00021038,3]
[347772086,1736098052154,-500.0,0.00021038,3]
[347772087,1736098052177,-500.0,0.00021038,3]
[347772088,1736098052200,-500.0,0.00021038,3]
[347772089,1736098052222,-500.0,0.00021038,3]
[347772090,1736098052243,-500.0,0.00021038,3]
[347772091,1736098052264,-500.0,0.00021038,3]
[347772092,1736098052287,-4889.74,0.00021038,3]
[347772093,1736098052308,-500.0,0.00021038,3]
[347772094,1736098052331,-500.0,0.00021038,3]
[347772095,1736098052352,-500.0,0.00021038,3]
[347772096,1736098052374,-500.0,0.00021038,3]
[347772097,1736098052396,-500.0,0.00021038,3]
[347772098,1736098052420,-500.0,0.00021038,3]
[347772099,1736098052442,-500.0,0.00021038,3]
[347772100,1736098052464,-500.0,0.00021038,3]
[347772101,1736098052486,-500.0,0.00021038,3]
[347772102,1736098052507,-500.0,0.00021038,3]
[347772103,1736098052529,-500.0,0.00021038,3]
[347772104,1736098052551,-500.0,0.00021038,3]
[347772105,1736098052574,-500.0,0.00021038,3]
[347772106,1736098052596,-500.0,0.00021038,3]
[347772107,1736098052618,-500.0,0.00021038,3]
[347772108,1736098052640,-500.0,0.00021038,3]
[347772109,1736098052662,-506.25800879,0.00021038,3]
[347772110,1736098052686,-500.0,0.00021038,3]
[347772111,1736098052708,-505.70545399,0.00021038,3]
[347772112,1736098052729,-154.04,0.00021038,2]
[347772113,1736098052847,-500.0,0.00021039,3]
[347772114,1736098052872,-500.0,0.00021049,3]
[347772115,1736098052895,-500.0,0.00021049,3]
[347772116,1736098052918,-500.0,0.00021049,3]
[347772117,1736098052941,-568.07,0.00021049,3]
[347772118,1736098052965,-500.0,0.00021049,3]
[347772119,1736098052988,-500.0,0.00021049,3]
[347772120,1736098053011,-500.0,0.00021049,3]
[347772121,1736098053035,-500.0,0.00021049,3]
[347772122,1736098053061,-500.0,0.00021049,3]
[347772123,1736098053091,-500.0,0.00021049,3]
[347772124,1736098053117,-500.0,0.00021049,3]
[347772125,1736098053141,-500.0,0.00021049,3]
[347772126,1736098053166,-500.0,0.00021049,3]
[347772127,1736098053192,-500.0,0.00021057,3]
[347772128,1736098053215,-500.0,0.00021057,3]
[347772129,1736098053239,-500.0,0.00021057,3]